fUSD/lending_fUSD_20250823
["ID","MTS","AMOUNT","RATE_DAILY","PERIOD"]
[381026635,1755954645022,-400.0,0.00013698,2]
[381026636,1755954645032,-698.17,0.00013698,2]
[381026637,1755954645042,-628.03,0.00013698,2]
[381026638,1755954645051,-4480.06,0.00013698,2]
[381026639,1755954645061,-408.16,0.00013698,2]
[381026640,1755954645071,-571.35,0.00013698,2]
[381026641,1755954645081,-400.0,0.00013698,2]
[381026642,1755954645091,-401.21801167,0.00013698,2]
[381026643,1755954645101,-400.0,0.00013698,2]
[381026644,1755954645111,-400.0,0.00013698,2]
[381026645,1755954645120,-579.09,0.00013698,2]
[381026646,1755954645130,-400.0,0.00013698,2]
[381026647,1755954645140,-400.0,0.00013698,2]
[381026648,1755954645150,-402.15427249,0.00013698,2]
[381026649,1755954645159,-686.21,0.00013698,2]
[381026650,1755954645173,-400.0,0.00013698,2]
[381026651,1755954645187,-1062.57,0.00013698,2]
[381026652,1755954645197,-400.0,0.00013698,2]
[381026653,1755954645207,-400.0,0.00013698,2]
[381026654,1755954645216,-857.2,0.00013698,2]
[381026655,1755954645226,-400.0,0.00013698,2]
[381026656,1755954645235,-400.0,0.00013698,2]
[381026657,1755954645246,-400.0,0.00013698,2]
[381026658,1755954645256,-401.99337387,0.00013698,2]
[381026659,1755954645265,-430.33,0.00013698,2]
[381026660,1755954645275,-400.0,0.00013698,2]
[381026661,1755954645287,-641.22,0.00013698,2]
[381026662,1755954645297,-678.57,0.00013698,2]
[381026663,1755954645307,-400.0,0.00013698,2]
[381026664,1755954645316,-604.45,0.00013698,2]
[381026665,1755954645326,-506.08,0.00013698,2]
[381026666,1755954645335,-400.0,0.00013698,2]
[381026667,1755954645344,-881.87,0.00013698,2]
[381026668,1755954645353,-542.91,0.00013698,2]
[381026669,1755954645363,-400.0,0.00013698,2]
[381026670,1755954645373,-400.0,0.00013698,2]
[381026671,1755954645383,-400.0,0.00013698,2]
[381026672,1755954645392,-573.45,0.00013698,2]
[381026673,1755954645402,-452.46,0.00013698,2]
[381026674,1755954645411,-400.0,0.00013698,2]
[381026675,1755954645421,-400.0,0.00013698,2]
[381026676,1755954645431,-400.0,0.00013698,2]
[381026677,1755954645440,-406.72,0.00013698,2]
[381026678,1755954645450,-400.0,0.00013698,2]
[381026679,1755954645460,-400.0,0.00013698,2]
[381026680,1755954645470,-400.0,0.00013698,2]
[381026681,1755954645480,-401.51702026,0.00013698,2]
[381026682,1755954645490,-400.0,0.00013698,2]
[381026683,1755954645499,-585.94,0.00013698,2]
[381026684,1755954645509,-746.0,0.00013698,2]
[381026685,1755954645519,-796.05,0.00013698,2]
[381026686,1755954645529,-400.0,0.00013698,2]
[381026687,1755954645799,-663.85,0.00013698,2]
[381026688,1755954645809,-400.0,0.00013698,2]
[381026689,1755954645818,-936.27,0.00013698,2]
[381026690,1755954645828,-400.0,0.00013698,2]
[381026691,1755954645838,-400.0,0.00013698,2]
[381026692,1755954645847,-584.32,0.00013698,2]
[381026693,1755954645856,-375.93619323,0.00013698,2]
[381026694,1755954645866,-400.0,0.00013698,2]
[381026695,1755954645877,-400.0,0.00013698,2]
[381026696,1755954645886,-400.0,0.00013698,2]
[381026697,1755954645896,-521.2,0.00013698,2]
[381026698,1755954645906,-400.0,0.00013698,2]
[381026699,1755954645916,-500.0,0.00013699,2]
[381026700,1755954645925,-500.0,0.00013699,2]
[381026701,1755954645935,-1000.0,0.00013699,2]
[381026702,1755954645944,-610.0,0.00013699,2]
[381026703,1755954645954,-3161.71,0.00013699,2]
[381026704,1755954645964,-200.0,0.00013699,2]
[381026705,1755954645973,-200.0,0.00013699,2]
[381026706,1755954645983,-200.0,0.00013699,2]
[381026707,1755954645992,-200.253743,0.00013699,2]
[381026708,1755954646002,-398.87,0.00013699,2]
[381026710,1755954646012,-200.0,0.00013699,2]
[381026711,1755954646022,-1000.0,0.00013699,2]
[381026713,1755954646032,-600.0,0.000137,5]
[381026715,1755954646042,-202.07,0.000137,2]
[381026716,1755954646053,-1380.17,0.000137,2]
[381026717,1755954646062,-1380.17,0.000137,2]
[381026718,1755954646072,-168.0,0.00013709,2]
[381026719,1755954646082,-2297.72349,0.0001371,2]
[381026720,1755954646092,-603.0,0.00013729,2]
[381026721,1755954646102,-23941.824288,0.00013794,2]
[381026722,1755954646111,-900.0,0.000138,5]
[381026723,1755954646122,-1919.0,0.00013805,2]
[381026724,1755954646132,-603.0,0.00013806,2]
[381026726,1755954646142,-526.53,0.00013819,2]
[381026727,1755954646152,-168.0,0.00013836,2]
[381026728,1755954646162,-603.0,0.00013842,2]
[381026729,1755954646178,-168.0,0.00013865,2]
[381026730,1755954646198,-463.7786526,0.00013872,2]
[381026731,1755954646219,-330.68409585,0.000139,2]
[381026732,1755954646231,-1200.0,0.000139,5]
[381026733,1755954646241,-1249.06795426,0.00013936,2]
[381026734,1755954646251,-3753.43271619,0.00013936,2]
[381026735,1755954646260,-170.96340366,0.00013936,2]
[381026736,1755954646271,-169.50061775,0.00013936,2]
[381026737,1755954646280,-701.0,0.00013945,2]
[381026738,1755954646290,-173.7,0.00013952,2]
[381026739,1755954646301,-500.0,0.00013955,2]
[381026740,1755954646311,-46441.07950086,0.00013955,2]
[381026741,1755954646324,-124488.03323438,0.00013956,2]
[381026742,1755954646343,-2297.72349,0.0001396,2]
[381026743,1755954646361,-400.0,0.00013971,2]
[381026744,1755954646371,-151.0,0.00013971,2]
[381026745,1755954646380,-151.0,0.00013971,2]
[381026746,1755954646389,-151.0,0.00013971,2]
[381026747,1755954646399,-1466.4353148,0.00013972,2]
[381026748,1755954646415,-88772.14977035,0.00013972,2]
[381026749,1755954646457,-14671.43004627,0.00013972,2]
[381026750,1755954646512,-410.84697194,0.00013972,2]
[381026751,1755954646524,-28952.9009385,0.00013972,2]
[381026752,1755954646549,-4347.01342177,0.00013972,2]
[381026753,1755954646561,-845.15810844,0.00013972,2]
[381026754,1755954646573,-1057.17661172,0.00013972,2]
[381026755,1755954646584,-480.81180486,0.00013972,2]
[381026824,1755954649157,-166.02,0.000126,2]
[381026825,1755954649167,-2158.27556668,0.00013972,2]
[381026826,1755954649182,-25311.77837787,0.00013972,2]
[381026827,1755954649214,-724.93080865,0.00013972,2]
[381026828,1755954649226,-64334.03647689,0.00013972,2]
[381026829,1755954649237,-1365.41047497,0.00013972,2]
[381026830,1755954649353,-1585.24652001,0.00013972,2]
[381026831,1755954649372,-4945.10916932,0.00013972,2]
[381026832,1755954649573,-8420.72714015,0.00013972,2]
[381026833,1755954649585,-529.00954927,0.00013972,2]
[381026834,1755954649596,-59515.72936992,0.00013972,2]
[381026835,1755954649607,-933.14790751,0.00013972,2]
[381026836,1755954649999,178.94683132,0.00011986,2]
[381026837,1755955356599,168.78577351,0.00028767,120]
[381026838,1755955403416,500.0,0.00026084,120]
[381026839,1755955403825,500.0,0.00028184,120]
[381026840,1755955445133,845.24,0.0001196,2]
[381026841,1755955490385,196.0,0.000119,2]
[381026842,1755955508142,4725.2574151,0.00012,2]
[381026843,1755955558892,271.0,0.00025125,120]
[381026844,1755955560650,271.0,0.00026382,120]
[381026845,1755955561748,271.0,0.00027701,120]
[381026846,1755955598191,150.0,0.00021,30]
[381026848,1755955631711,166.04,0.000287,120]
[381026849,1755955651102,2900.0,0.00010201,2]
[381026852,1755955699105,500.0,0.000287,120]
[381026853,1755955711691,2000.0,0.00026,120]
[381026854,1755955712831,439.0,0.000287,120]
[381026856,1755955720789,150.0,0.00021,120]
[381026859,1755955811850,253.0,0.00024449,120]
[381026860,1755955813314,253.0,0.00025672,120]
[381026861,1755955814904,253.0,0.00026956,120]
[381026862,1755955815903,253.0,0.00028303,120]
[381026876,1755955831424,-848.69908288,0.00011063,2]
[381026877,1755955831437,-578.81091712,0.00011063,2]
[381026878,1755955831446,-360.81622185,0.00011075,2]
[381026879,1755955831486,-139.18377815,0.00011075,2]
[381026880,1755955831496,-281.48703675,0.00011086,2]
[381026881,1755955831508,-847.35224231,0.00011086,2]
[381026882,1755955831523,-1371.16072094,0.00011086,2]
[381026883,1755955831533,-203.17216169,0.00011109,2]
[381026884,1755955831547,-490.52872085,0.00011109,2]
[381026885,1755955831557,-1000.0,0.0001111,2]
[381026886,1755955831567,-300.0,0.000116,4]
[381026887,1755955831577,-500.0,0.00011625,2]
[381026888,1755955831587,-250.0,0.00011625,2]
[381026889,1755955831596,-1200.0,0.00011649,2]
[381026890,1755955831606,-2500.0,0.0001165,2]
[381026891,1755955831616,-310.0,0.0001165,2]
[381026892,1755955831626,-2000.0,0.0001165,3]
[381026893,1755955831635,-600.0,0.000117,4]
[381026894,1755955831644,-500.0,0.00011706,2]
[381026895,1755955831654,-250.0,0.00011706,2]
[381026925,1755955831975,-2500.0,0.0001178,2]
[381026927,1755955831993,-310.0,0.0001178,2]
[381026930,1755955832004,-1000.0,0.000118,4]
[381026931,1755955832013,-460.4504,0.00011898,2]
[381026934,1755955832023,-1300.0,0.000119,4]
[381026935,1755955832033,-330.68409585,0.000119,2]
[381026938,1755955832042,-169.36659393,0.000119,2]
[381026940,1755955832055,-247.69514901,0.000119,2]
[381026941,1755955832064,-186.5207551,0.000119,2]
[381026943,1755955832074,-520.0,0.00011969,2]
[381026945,1755955832083,-212.67978018,0.0001199,2]
[381026948,1755955832093,-212.67978018,0.0001199,2]
[381026950,1755955832102,-530.84507388,0.00011999,2]
[381026951,1755955832111,-150.0,0.00011999,2]
[381026953,1755955832121,-1551.80631036,0.00012,2]
[381026955,1755955832130,-94162.41045801,0.00012,2]
[381026958,1755955832142,-811.07739899,0.00012,2]
[381026973,1755955832284,-458.10006786,0.00012,2]
[381026978,1755955832321,-826.94015992,0.00012,2]
[381026982,1755955832355,-724.00630629,0.00012,2]
[381026987,1755955832401,-614764.98419227,0.00012,2]
[381026989,1755955832410,-256913.58437579,0.00012,2]
[381026991,1755955832422,-43609.91443888,0.00012,2]
[381026995,1755955832451,-258.87161287,0.00012,2]
[381027068,1755955837532,-355.25324767,0.00012,2]
[381027069,1755955837546,-67701.5436971,0.00012,2]
[381027070,1755955837707,-1186.3,0.00012,2]
[381027071,1755955837718,-1904.96445524,0.00012,2]
[381027076,1755955837818,-2092.71075627,0.00012,2]
[381027085,1755955837894,-2305.4,0.00012,2]
[381027087,1755955837905,-1844.29666975,0.00012,2]
[381027090,1755955837916,-85165.78236686,0.00012,2]
[381027092,1755955837927,-142169.468,0.00012,2]
[381027094,1755955837938,-16104.0,0.00012,2]
[381027096,1755955837949,-10290.0,0.00012,2]
[381027100,1755955837973,-2461090.08239226,0.00012,2]
[381027102,1755955837982,-151.0,0.00012,2]
[381027104,1755955837991,-302.0,0.00012,2]
[381027106,1755955838001,-2894786.38232849,0.00012,2]
[381027109,1755955838019,-311.42415122,0.00012,2]
[381027252,1755955839411,-634.05391998,0.00012,2]
[381027262,1755955839582,-3837.80454679,0.00012,2]
[381027276,1755955839700,-3117.26950434,0.00012,2]
[381027278,1755955839715,-1070519.00439905,0.00012,2]
[381027280,1755955839724,-10593.61,0.00012,2]
[381027282,1755955839734,-151.0,0.00012,2]
[381027284,1755955839743,-220.403461,0.00012,2]
[381027286,1755955839753,-428.666469,0.00012,2]
[381027288,1755955839762,-428.666469,0.00012,2]
[381027290,1755955839772,-151.0,0.00012,2]
[381027292,1755955839781,-151.0,0.00012,2]
[381027294,1755955839791,-428.666469,0.00012,2]
[381027296,1755955839800,-151.0,0.00012,2]
[381027298,1755955839810,-428.666469,0.00012,2]
[381027300,1755955839820,-151.0,0.00012,2]
[381027302,1755955839829,-151.0,0.00012,2]
[381027304,1755955839839,-2728.497295,0.00012,2]
[381027306,1755955839849,-2728.497295,0.00012,2]
[381027308,1755955839858,-2728.497295,0.00012,2]
[381027310,1755955839867,-151.0,0.00012,2]
[381027312,1755955839877,-2728.497295,0.00012,2]
[381027314,1755955839886,-151.0,0.00012,2]
[381027316,1755955839895,-151.0,0.00012,2]
[381027318,1755955839904,-2072.393154,0.00012,2]
[381027320,1755955839913,-1103.992893,0.00012,2]
[381027322,1755955839922,-151.0,0.00012,2]
[381027324,1755955839932,-1229.467304,0.00012,2]
[381027326,1755955839941,-2072.393154,0.00012,2]
[381027328,1755955839951,-1103.992893,0.00012,2]
[381027330,1755955839960,-1229.467304,0.00012,2]
[381027332,1755955839970,-2072.393154,0.00012,2]
[381027334,1755955839979,-151.0,0.00012,2]
[381027336,1755955839989,-1103.992893,0.00012,2]
[381027338,1755955839998,-1229.467304,0.00012,2]
[381027340,1755955840007,-2072.393154,0.00012,2]
[381027342,1755955840017,-151.0,0.00012,2]
[381027344,1755955840026,-1103.992893,0.00012,2]
[381027346,1755955840035,-151.0,0.00012,2]
[381027348,1755955840044,-1229.467304,0.00012,2]
[381027350,1755955840053,-169.289978,0.00012,2]
[381027352,1755955840065,-169.289978,0.00012,2]
[381027354,1755955840074,-169.289978,0.00012,2]
[381027356,1755955840083,-594.0,0.00012036,2]
[381027358,1755955840092,-313.47,0.0001207,2]
[381027360,1755955840101,-250.0,0.00012086,2]
[381027362,1755955840111,-500.0,0.00012119,2]
[381027364,1755955840121,-304.69,0.00012124,2]
[381027366,1755955840130,-304.22,0.00012125,2]
[381027368,1755955840140,-302.0,0.00012125,2]
[381027370,1755955840150,-302.64,0.00012125,2]
[381027372,1755955840159,-304.84,0.00012125,2]
[381027374,1755955840170,-302.83,0.00012125,2]
[381027376,1755955840180,-300.95,0.00012125,2]
[381027378,1755955840189,-305.61,0.00012125,2]
[381027380,1755955840199,-213.5,0.00012126,2]
[381027382,1755955840209,-302.18,0.00012126,2]
[381027385,1755955840220,-213.62,0.00012126,2]
[381027387,1755955840230,-214.78,0.00012126,2]
[381027388,1755955840240,-212.43,0.00012126,2]
[381027390,1755955840249,-304.18,0.00012126,2]
[381027393,1755955840258,-213.5,0.00012126,2]
[381027395,1755955840268,-210.52,0.00012126,2]
[381027396,1755955840278,-212.63,0.00012126,2]
[381027398,1755955840287,-300.19,0.00012126,2]
[381027400,1755955840297,-211.16,0.00012126,2]
[381027402,1755955840306,-215.37,0.00012126,2]
[381027405,1755955840317,-300.39,0.00012126,2]
[381027407,1755955840327,-215.87,0.00012126,2]
[381027408,1755955840336,-209.79,0.00012126,2]
[381027411,1755955840345,-304.45,0.00012126,2]
[381027412,1755955840355,-209.39,0.00012126,2]
[381027435,1755955840572,-215.15,0.00012126,2]
[381027437,1755955840586,-213.89,0.00012126,2]
[381027439,1755955840596,-305.28,0.00012126,2]
[381027441,1755955840605,-212.41,0.00012126,2]
[381027443,1755955840615,-210.52,0.00012126,2]
[381027445,1755955840624,-209.71,0.00012126,2]
[381027447,1755955840634,-303.25,0.00012126,2]
[381027449,1755955840643,-213.64,0.00012126,2]
[381027451,1755955840652,-216.15,0.00012126,2]
[381027453,1755955840661,-213.43,0.00012126,2]
[381027455,1755955840670,-215.2,0.00012126,2]
[381027457,1755955840679,-216.41,0.00012126,2]
[381027459,1755955840688,-303.79,0.00012126,2]
[381027461,1755955840698,-305.62,0.00012126,2]
[381027463,1755955840708,-305.06,0.00012127,2]
[381027465,1755955840718,-213.82,0.00012127,2]
[381027467,1755955840727,-208.48,0.00012127,2]
[381027469,1755955840736,-212.03,0.00012127,2]
[381027471,1755955840746,-214.68,0.00012127,2]
[381027473,1755955840755,-208.49,0.00012127,2]
[381027475,1755955840764,-215.18,0.00012127,2]
[381027477,1755955840774,-301.24,0.00012127,2]
[381027479,1755955840783,-215.66,0.00012128,2]
[381027481,1755955840793,-302.56,0.00012128,2]
[381027483,1755955840802,-211.29,0.00012128,2]
[381027485,1755955840812,-214.12,0.00012128,2]
[381027487,1755955840821,-210.63,0.00012128,2]
[381027489,1755955840831,-210.57,0.00012128,2]
[381027491,1755955840840,-213.66,0.00012128,2]
[381027493,1755955840849,-213.51,0.00012128,2]
[381027495,1755955840859,-209.2,0.00012128,2]
[381027497,1755955840868,-216.14,0.00012128,2]
[381027499,1755955840878,-212.49,0.00012128,2]
[381027501,1755955840887,-300.26,0.00012128,2]
[381027503,1755955840896,-212.19,0.00012128,2]
[381027505,1755955840905,-213.51,0.00012128,2]
[381027507,1755955840916,-215.76,0.00012128,2]
[381027510,1755955840928,-150.13,0.00012129,2]
[381027512,1755955840937,-209.61,0.00012129,2]
[381027514,1755955840947,-216.52,0.00012129,2]
[381027516,1755955840956,-150.65,0.00012129,2]
[381027518,1755955840965,-302.16,0.00012129,2]
[381027520,1755955840975,-210.83,0.00012129,2]
[381027522,1755955840984,-150.2,0.00012129,2]
[381027524,1755955840993,-212.76,0.00012129,2]
[381027526,1755955841002,-210.4,0.00012129,2]
[381027528,1755955841012,-212.4,0.00012129,2]
[381027530,1755955841021,-211.97,0.00012129,2]
[381027532,1755955841030,-301.53,0.00012129,2]
[381027534,1755955841039,-208.29,0.00012129,2]
[381027536,1755955841049,-212.92,0.00012129,2]
[381027538,1755955841058,-210.15,0.00012129,2]
[381027540,1755955841068,-302.46,0.00012129,2]
[381027542,1755955841079,-212.97,0.00012129,2]
[381027544,1755955841089,-209.0,0.00012129,2]
[381027546,1755955841098,-301.82,0.00012129,2]
[381027548,1755955841107,-214.77,0.00012129,2]
[381027550,1755955841117,-305.03,0.00012129,2]
[381027552,1755955841128,-305.24,0.00012129,2]
[381027554,1755955841137,-213.24,0.00012129,2]
[381027556,1755955841146,-208.61,0.00012129,2]
[381027558,1755955841156,-212.5,0.00012129,2]
[381027560,1755955841165,-208.77,0.00012129,2]
[381027562,1755955841174,-210.02,0.00012129,2]
[381027564,1755955841183,-304.23,0.00012129,2]
[381027567,1755955841202,-305.53,0.00012129,2]
[381027568,1755955841211,-2000.0,0.0001213,2]
[381027571,1755955841221,-211.354276,0.0001213,2]
[381027572,1755955841230,-213.21,0.0001213,2]
[381027574,1755955841240,-210.49,0.0001213,2]
[381027576,1755955841249,-301.28,0.0001213,2]
[381027578,1755955841258,-215.51,0.0001213,2]
[381027581,1755955841268,-210.3,0.0001213,2]
[381027583,1755955841278,-209.12,0.0001213,2]
[381027585,1755955841287,-305.33,0.0001213,2]
[381027587,1755955841297,-216.65,0.0001213,2]
[381027589,1755955841306,-214.31,0.0001213,2]
[381027591,1755955841316,-303.87,0.0001213,2]
[381027593,1755955841325,-216.73,0.0001213,2]
[381027595,1755955841335,-213.74,0.0001213,2]
[381027597,1755955841344,-305.5,0.0001213,2]
[381027599,1755955841353,-214.83,0.0001213,2]
[381027600,1755955841363,-150.39,0.0001213,2]
[381027601,1755955841372,-214.31,0.0001213,2]
[381027602,1755955841381,-216.26,0.0001213,2]
[381027603,1755955841391,-305.1,0.0001213,2]
[381027604,1755955841400,-2500.0,0.00012169,2]
[381027605,1755955841409,-500.0,0.00012169,2]
[381027606,1755955841418,-500.0,0.00012174,2]
[381027607,1755955841427,-500.0,0.00012229,2]
[381027608,1755955841436,-250.0,0.00012257,2]
[381027609,1755955841445,-2000.0,0.0001226,2]
[381027611,1755955841454,-738.0,0.00012271,2]
[381027612,1755955841463,-1076.0,0.00012271,2]
[381027614,1755955841472,-500.0,0.00012284,2]
[381027616,1755955841482,-500.0,0.00012339,2]
[381027618,1755955841491,-500.0,0.00012394,2]
[381027620,1755955841500,-463.51,0.00012414,2]
[381027622,1755955841510,-500.0,0.00012449,2]
[381027624,1755955841519,-9549.66988087,0.00012458,2]
[381027626,1755955841528,-167.03,0.0001249,2]
[381027628,1755955841542,-1000.0,0.00012499,2]
[381027630,1755955841551,-500.0,0.00012504,2]
[381027632,1755955841560,-333.33,0.00012507,2]
[381027634,1755955841570,-500.0,0.00012559,2]
[381027636,1755955841580,-247.69514895,0.00012567,2]
[381027638,1755955841589,-190.2,0.00012581,2]
[381027640,1755955841598,-500.0,0.00012614,2]
[381027642,1755955841609,-500.0,0.00012669,2]
[381027644,1755955841618,-170.55,0.0001271,2]
[381027646,1755955841627,-2500.0,0.0001276,2]
[381027648,1755955841636,-310.0,0.0001276,2]
[381027650,1755955841645,-2000.0,0.0001276,3]
[381027652,1755955841654,-300.0,0.0001276,2]
[381027654,1755955841663,-500.0,0.0001276,2]
[381027656,1755955841673,-250.0,0.0001276,2]
[381027658,1755955841682,-1680.0,0.00012814,2]
[381027660,1755955841691,-499.99,0.00012893,2]
[381027662,1755955841701,-2218.02,0.00012893,2]
[381027664,1755955841710,-7750.99,0.00012893,2]
[381027666,1755955841719,-160.0,0.00012947,2]
[381027668,1755955841728,-721.12765535,0.00012947,2]
[381027670,1755955841737,-500.0,0.00012947,2]
[381027672,1755955841746,-277.35679052,0.00012947,2]
[381027674,1755955841756,-5391.81600769,0.00012947,2]
[381027676,1755955841765,-151.0,0.00012947,2]
[381027678,1755955841774,-322.6107,0.00012947,2]
[381027680,1755955841783,-4343.9577659,0.00013,2]
[381027682,1755955841792,-5591.31319997,0.00013002,2]
[381027684,1755955841802,-5798.19178837,0.00013057,2]
[381027686,1755955841811,-255.0,0.00013079,2]
[381027688,1755955841821,-192.0,0.0001308,2]
[381027690,1755955841831,-6012.72488454,0.00013112,2]
[381027692,1755955841840,-4755.42691794,0.00013167,2]
[381027694,1755955841849,-247.69514895,0.00013233,2]
[381027696,1755955841860,-169.36659393,0.00013272,2]
[381027698,1755955841870,-1716.2418,0.00013346,2]
[381027700,1755955841879,-2000.0,0.00013398,2]
[381027702,1755955841890,-208.94,0.00013398,2]
[381027704,1755955841900,-303.59,0.00013398,2]
[381027706,1755955841909,-214.14,0.00013398,2]
[381027708,1755955841918,-2000.0,0.00013399,2]
[381027710,1755955841928,-208.33,0.00013462,2]
[381027712,1755955841938,-210.14,0.00013462,2]
[381027714,1755955841948,-210.78,0.00013462,2]
[381027716,1755955841957,-301.44,0.00013462,2]
[381027718,1755955841966,-215.12,0.00013462,2]
[381027720,1755955841976,-5800.0,0.00013495,2]
[381027722,1755955841985,-151.0,0.00013495,2]
[381027724,1755955841994,-5800.0,0.00013503,2]
[381027727,1755955842003,-7000.0,0.0001352,3]
[381027729,1755955842013,-844.27675029,0.00013553,2]
[381027731,1755955842023,-212.10093811,0.00013554,2]
[381027733,1755955842032,-458.60200496,0.00013554,2]
[381027767,1755955842306,-160.0,0.00013554,2]
[381027770,1755955842316,-10593.61,0.000136,2]
[381027773,1755955842325,-1298.0,0.00013644,2]
[381027775,1755955842334,-1657.0,0.00013644,2]
[381027777,1755955842344,-566.0,0.00013644,2]
[381027779,1755955842353,-599.0,0.00013644,2]
[381027781,1755955842363,-894.0,0.00013644,2]
[381027783,1755955842372,-1172.0,0.00013644,2]
[381027785,1755955842382,-925.0,0.00013644,2]
[381027787,1755955842391,-1255.0,0.00013644,2]
[381027789,1755955842402,-4153.0,0.00013644,2]
[381027791,1755955842412,-3373.0,0.00013644,2]
[381027793,1755955842423,-2066.53,0.00013644,2]
[381027795,1755955842433,-799.21,0.00013684,2]
[381027797,1755955842442,-799.21,0.00013684,2]
[381027799,1755955842451,-799.21,0.00013684,2]
[381027801,1755955842461,-743.77,0.00013684,2]
[381027803,1755955842470,-2319.0,0.00013689,2]
[381027805,1755955842480,-2827.4680262,0.00013692,2]
[381027807,1755955842490,-1000.0,0.00013699,2]
[381027809,1755955842499,-2529.36,0.00013699,2]
[381027811,1755955842509,-200.0,0.00013699,2]
[381027813,1755955842518,-398.87,0.00013699,2]
[381027815,1755955842527,-610.0,0.00013699,2]
[381027817,1755955842537,-151.0,0.00013699,2]
[381027819,1755955842552,-151.0,0.00013699,2]
[381027821,1755955842562,-151.0,0.00013699,2]
[381027823,1755955842574,-200.0,0.00013724,2]
[381027825,1755955842585,-186.52075508,0.0001375,2]
[381027827,1755955842594,-168.0,0.0001377,2]
[381027829,1755955842604,-23941.824288,0.00013794,2]
[381027831,1755955842614,-168.0,0.00013818,2]
[381027833,1755955842624,-1962.55953,0.0001383,2]
[381027835,1755955842633,-168.0,0.00013843,2]
[381027837,1755955842643,-1000.0,0.00013888,2]
[381027839,1755955842652,-2000.0,0.00013899,2]
[381027841,1755955842662,-1000.0,0.00013899,2]
[381027843,1755955842671,-1700.0,0.000139,5]
[381027845,1755955842681,-5000.0,0.000139,2]
[381027847,1755955842690,-12705.8351255,0.000139,2]
[381027849,1755955842700,-247.69514895,0.000139,2]
[381027851,1755955842711,-168.0,0.00013921,2]
[381027853,1755955842721,-150.0,0.00013922,2]
[381027855,1755955842731,-565.76731911,0.00013922,2]
[381027857,1755955842740,-721.07599494,0.00013923,2]
[381027859,1755955842749,-876.38467078,0.00013923,2]
[381027861,1755955842759,-1031.69334661,0.00013924,2]
[381027863,1755955842768,-1187.00202244,0.00013924,2]
[381027865,1755955842778,-1342.31069828,0.00013925,2]
[381027867,1755955842787,-1497.61937411,0.00013925,2]
[381027869,1755955842796,-1652.92804995,0.00013925,2]
[381027870,1755955842806,-1808.23672578,0.00013926,2]
[381027873,1755955842816,-330732.2280516,0.00013936,2]
[381027874,1755955842826,-151.0,0.00013936,2]
[381027876,1755955842835,-435.273855,0.00013936,2]
[381027878,1755955842845,-12000.0,0.00013936,2]
[381027880,1755955842855,-151.0,0.00013936,2]
[381027882,1755955842865,-435.273855,0.00013936,2]
[381027884,1755955842874,-12000.0,0.00013936,2]
[381027886,1755955842884,-435.273855,0.00013936,2]
[381027888,1755955842893,-3503.644184,0.00013936,2]
[381027890,1755955842904,-435.273855,0.00013936,2]
[381027892,1755955842914,-3503.644184,0.00013936,2]
[381027895,1755955842923,-3503.644184,0.00013936,2]
[381027897,1755955842933,-3503.644184,0.00013936,2]